[Event "Live Chess"]
[Site "Chess.com"]
[Date "2017.12.27"]
[White "Arugamama"]
[Black "frankgrunwald"]
[Result "1-0"]
[ECO "C41"]
[WhiteElo "1597"]
[BlackElo "1486"]
[TimeControl "1800"]
[EndTime "19:36:14 PST"]
[Termination "Arugamama won by resignation"]
[CurrentPosition "1k1r3r/p1p3pp/BpQ2p2/4p1b1/1P2P3/1K3P2/P1P3PP/7n b - - 1 22"]

1.e4 {[%clk 0:29:58]} e5 {[%clk 0:29:54]} 2.Nf3 {[%clk 0:29:48]} d6 {[%clk 0:29:51]} 3.d4 {[%clk 0:29:39]} Bg4 {[%clk 0:29:48]} 4.dxe5 {[%clk 0:29:29]} Bxf3 {[%clk 0:29:46]} 5.Qxf3 {[%clk 0:29:16]} dxe5 {[%clk 0:29:33]} 6.Bc4 {[%clk 0:28:57]} Nf6 {[%clk 0:29:15]} 7.Qb3 {[%clk 0:28:34]} Qe7 {[%clk 0:27:33]} 8.Nc3 {[%clk 0:28:12]} b6 {[%clk 0:27:26]} 9.Bg5 {[%clk 0:27:10]} Nbd7 {[%clk 0:27:20]} 10.Nd5 {[%clk 0:26:27]} O-O-O {[%clk 0:27:01]} 11.Nxe7+ {[%clk 0:26:13]} Bxe7 {[%clk 0:26:56]} 12.O-O-O {[%clk 0:25:44]} Nc5 {[%clk 0:26:52]} 13.Qh3+ {[%clk 0:23:39]} Kb8 {[%clk 0:26:39]} 14.Bxf6 {[%clk 0:23:25]} Bxf6 {[%clk 0:26:35]} 15.f3 {[%clk 0:22:49]} Bg5+ {[%clk 0:26:22]} 16.Kb1 {[%clk 0:22:43]} f6 {[%clk 0:26:19]} 17.b4 {[%clk 0:21:57]} Na4 {[%clk 0:26:06]} 18.Ba6 {[%clk 0:21:01]} Nc3+ {[%clk 0:26:01]} 19.Kb2 {[%clk 0:20:48]} Nxd1+ {[%clk 0:25:59]} 20.Kb3 {[%clk 0:20:17]} Nf2 {[%clk 0:25:57]} 21.Qe6 {[%clk 0:20:08]} Nxh1 {[%clk 0:25:53]} 22.Qc6 {[%clk 0:20:03]}  1-0

[Event "Live Chess"]
[Site "Chess.com"]
[Date "2017.12.27"]
[Round "?"]
[White "Arugamama"]
[Black "frankgrunwald"]
[Result "1-0"]
[BlackElo "1486"]
[ECO "C41"]
[Opening "Philidor"]
[Variation "3.d4"]
[WhiteElo "1597"]
[TimeControl "1800"]
[Termination "normal"]
[PlyCount "43"]
[WhiteType "human"]
[BlackType "human"]

1. e4 {[%clk 0:29:58]} e5 {[%clk 0:29:54]} 2. Nf3 {[%clk 0:29:48]} d6
{[%clk 0:29:51]} 3. d4 {[%clk 0:29:39]} Bg4 {[%clk 0:29:48]} 4. dxe5 {[%clk
0:29:29]} Bxf3 {[%clk 0:29:46]} 5. Qxf3 {[%clk 0:29:16]} dxe5 {[%clk
0:29:33]} 6. Bc4 {[%clk 0:28:57]} Nf6 {[%clk 0:29:15]} 7. Qb3 {[%clk
0:28:34]} Qe7 {[%clk 0:27:33]} 8. Nc3 {[%clk 0:28:12]} b6 {[%clk 0:27:26]}
9. Bg5 {[%clk 0:27:10]} Nbd7 {[%clk 0:27:20]} 10. Nd5 {[%clk 0:26:27]}
O-O-O {[%clk 0:27:01]} 11. Nxe7+ {[%clk 0:26:13]} Bxe7 {[%clk 0:26:56]} 12.
O-O-O {[%clk 0:25:44]} (12. Ba6+ Kb8 13. Qxf7 Bd6 14. f3 Rhf8 15. Qc4 Nc5
16. Bb5 c6 17. Bxc6 Rc8 18. Bb5 Ncxe4 19. Qe6 Bb4+ 20. c3 Nxg5 21. Qxe5+
Kb7 22. Qxg5 Bc5 23. b4 Be7 24. Qe5 Bd8 25. O-O-O Bc7 26. Qe7+-) 12. .. Nc5
{[%clk 0:26:52]} 13. Qh3+ {[%clk 0:23:39]} (13. Qb5 a6 14. Qc6 Kb8 15. b4
Ne6 16. Bxa6+-) 13. .. Kb8 {[%clk 0:26:39]} 14. Bxf6 {[%clk 0:23:25]} Bxf6
{[%clk 0:26:35]} 15. f3 {[%clk 0:22:49]} (15. Bd5 Bg5+ 16. Kb1 a5 17. Qa3
Na6 18. c3 Rd6 19. b4 Rhd8 20. bxa5 b5 21. c4 c6 22. cxb5 cxd5 23. bxa6 Ka8
24. Rxd5 Rb8+ 25. Kc2 Rc6+ 26. Kd3 f5 27. exf5 Rc7 28. Qd6 Re7 29. Rxe5
Rxe5 30. Qxe5+-) 15. .. Bg5+ {[%clk 0:26:22]} 16. Kb1 {[%clk 0:22:43]} f6
{[%clk 0:26:19]} 17. b4 {[%clk 0:21:57]} Na4 {[%clk 0:26:06]} 18. Ba6
{[%clk 0:21:01]} (18. f4 Bxf4 19. Bb5 Rd4 20. Rxd4 exd4 21. Bxa4 a6 22. Qd7
Be5 23. Qxg7 Rd8 24. Qxh7 d3 25. cxd3 Rxd3 26. Qg8+ Kb7 27. Bc6+ Kxc6 28.
Qc4++-) 18. .. Nc3+ {[%clk 0:26:01]} 19. Kb2 {[%clk 0:20:48]} Nxd1+ {[%clk
0:25:59]} 20. Kb3 {[%clk 0:20:17]} Nf2 {[%clk 0:25:57]} 21. Qe6 {[%clk
0:20:08]} Nxh1 {[%clk 0:25:53]} 22. Qc6 {[%clk 0:20:03]} 1-0